[Event "German Bundesliga 2024-25"]
[Site "Germany"]
[Date "2025.01.12"]
[Round "6.10"]
[White "Giri, Anish"]
[Black "Howell, David W L"]
[Result "1/2-1/2"]
[Annotator "TA"]
[ECO "A14"]
[WhiteElo "2733"]
[BlackElo "2673"]
[PlyCount "45"]
[EventDate "2024.09.27"]
[EventType "team-tourn"]
[EventCountry "GER"]
[SourceTitle "playchess.com"]
[Source "ChessBase"]
[SourceQuality "1"]
[WhiteTeam "Duesseldorf"]
[BlackTeam "St. Pauli"]
[TimeControl "40/5400+30:1800+30"]

{[%evp 12,45,0,0,0,-5,5,-24,-24,-22,-15,-34,-13,-25,-10,-11,-10,-16,-13,-7,-5,-9,0,0,0,0,0,0,0,-24,-15,-27,-18,-9,-22,-30]} 1. c4 {[%emt 0:00:03]} Nf6 {[%emt 0:04:59]} 2. Nf3 {[%emt 0:01:25]} e6 {[%emt 0:01:59]} 3. g3 {[%emt 0:02:22]} d5 {[%emt 0:01:36]} 4. cxd5 {[%emt 0:00:10]} exd5 {[%emt 0:00:31]} 5. Bg2 {[%emt 0:00:05]} Be7 {[%emt 0:07:05]} 6. O-O {[%emt 0:00:14]} O-O {[%emt 0:00:06]} 7. b3 {[%emt 0:00:05]} Re8 {[%emt 0:06:48]} 8. Bb2 {[%emt 0:00:25]} c6 {[%emt 0:00:40]} 9. Na3 {[%emt 0:00:36]} a5 {[%emt 0:04:40]} 10. Nc2 {[%emt 0:00:36]} Na6 {[%emt 0:00:26]} 11. a3 {[%emt 0:09:34]} Bf5 {[%emt 0:16:06]} 12. d3 {[%emt 0:09:36]} Qd7 {[%emt 0:03:17]} 13. Bc3 {[%emt 0:05:56]} Bh3 {[%emt 0:05:19]} 14. b4 {[%emt 0:04:20]} Bxg2 {[%emt 0:00:48]} 15. Kxg2 {[%emt 0:00:41]} axb4 {[%emt 0:03:13]} 16. axb4 {[%emt 0:00:06]} Nc7 {[%emt 0:00:13]} 17. Ncd4 {[%emt 0:07:40]} Rxa1 {[%emt 0:09:36]} 18. Qxa1 {[%emt 0:00:19]} Ra8 {[%emt 0:00:09]} 19. Qb2 {[%emt 0:00:08]} Nfe8 {[%emt 0:01:11]} 20. e4 {[%emt 0:03:23]} dxe4 {[%emt 0:04:00]} 21. dxe4 {[%emt 0:00:11]} Nd6 {[%emt 0:01:22]} 22. Re1 {[%emt 0:02:40]} Bf8 {[%emt 0:00:39]} 23. Qb3 {[%emt 0:04:05]} 1/2-1/2

[Event "German Bundesliga 2024-25"]
[Site "Germany"]
[Date "2025.01.12"]
[Round "6.10"]
[White "Fedoseev, Vladimir"]
[Black "Pechac, Jergus"]
[Result "1-0"]
[Annotator "TA"]
[ECO "D02"]
[WhiteElo "2712"]
[BlackElo "2599"]
[PlyCount "103"]
[EventDate "2024.09.27"]
[EventType "team-tourn"]
[EventCountry "GER"]
[SourceTitle "playchess.com"]
[Source "ChessBase"]
[SourceQuality "1"]
[WhiteTeam "Bayern Muenchen"]
[BlackTeam "TU Dresden"]
[TimeControl "40/5400+30:1800+30"]

{[%evp 9,102,2,12,0,9,6,18,4,21,19,41,25,31,26,30,19,41,41,35,25,32,25,33,34,32,28,41,38,56,45,39,17,16,9,31,0,8,0,49,36,49,45,42,44,33,0,1,0,64,68,49,52,66,63,69,40,54,51,70,19,132,107,194,196,202,197,205,200,199,190,179,157,168,170,337,314,464,218,465,481,506,511,29977,29978,29978,29979,29991,29987,29992,29988,29993,29994,29994,29995,29999]} 1. d4 {[%emt 0:00:27]} Nf6 {[%emt 0:00:07]} 2. c3 {[%emt 0:00:35]} d5 {[%emt 0:00:14]} 3. Nf3 {[%emt 0:00:12]} e6 {[%emt 0:01:12]} 4. Bf4 {[%emt 0:00:18]} c5 {[%emt 0:00:39]} 5. e3 {[%emt 0:00:13]} Bd6 {[%emt 0:00:26]} 6. Bd3 {[%emt 0:03:13]} Bxf4 {[%emt 0:11:45]} 7. exf4 {[%emt 0:00:08]} O-O {[%emt 0:00:26]} 8. dxc5 {[%emt 0:05:56]} Qc7 {[%emt 0:01:11][%csl LRc5,LRf4]} 9. g3 {[%emt 0:00:21]} Qxc5 {[%emt 0:01:11]} 10. Qe2 {[%emt 0:02:46]} b6 {[%emt 0:06:48]} 11. Nbd2 {[%emt 0:05:55][%cal Bb1d2,Bd2b3,Bb3d4][%mdl 32]} a5 {[%emt 0:05:47]} 12. Nb3 {[%emt 0:00:12]} Qd6 {[%emt 0:03:20]} 13. Nbd4 {[%emt 0:05:20]} Ba6 {[%emt 0:00:14]} 14. Bxa6 {[%emt 0:01:18]} Nxa6 {[%emt 0:00:14][%cal Bb8a6,Ba6c5,Bc5e4][%mdl 32]} 15. O-O {[%emt 0:00:22]} Nc5 {[%emt 0:01:42]} 16. Rad1 {[%emt 0:01:13]} Rac8 {[%emt 0:04:49]} 17. Ne5 {[%emt 0:00:48][%cal Bf3e5,Be5g4,Bg4e3][%mdl 32]} Rfe8 {[%emt 0:01:52]} 18. Rfe1 {[%emt 0:07:11]} Nfd7 {[%emt 0:03:15]} 19. Ng4 {[%emt 0:09:13]} Ne4 {[%emt 0:05:55]} 20. f5 {[%emt 0:06:06]} e5 {[%emt 0:08:07]} 21. Nf3 {[%emt 0:05:15][%cal Oe2e4]} h5 {[%emt 0:15:43]} 22. Ne3 {[%emt 0:05:35]} Nef6 {[%emt 0:00:10]} 23. Ng5 {[%emt 0:05:28][%cal Oe3d5]} d4 {[%emt 0:06:34]} (23... Rc5 $1 $11 {is superior.}) 24. Nf3 {[%emt 0:01:34][%cal Rc3d4]} Nd5 {[%emt 0:03:40]} 25. cxd4 {[%emt 0:01:32]} Nxe3 {[%emt 0:03:35]} 26. Qxe3 {[%emt 0:05:38]} (26. fxe3 e4 27. Ng5 Qd5 $11 (27... Nf6 28. Qb5 $17)) 26... e4 {[%emt 0:00:21]} 27. Nh4 {[%emt 0:03:50]} Nf6 {[%emt 0:01:32]} 28. Qb3 {[%emt 0:00:55]} Qd5 {[%emt 0:03:12]} ({Black should try} 28... Nd5 $11) 29. Qxd5 $14 {[%emt 0:05:43]} Nxd5 {[%emt 0:00:02]} 30. Re2 {[%emt 0:01:41]} Kf8 {[%emt 0:05:40]} 31. Ng2 {[%emt 0:01:48]} Rc4 {[%emt 0:00:43]} 32. h3 {[%emt 0:00:57]} a4 {[%emt 0:00:30]} 33. g4 {[%emt 0:02:51]} b5 {[%emt 0:03:14]} 34. Kh2 {[%emt 0:05:07]} (34. gxh5 $14 Rc6 35. Rde1) 34... b4 {[%emt 0:01:02]} (34... a3 $11) 35. Kg3 {[%emt 0:00:54]} b3 {[%emt 0:00:36]} (35... Rec8 $16) 36. axb3 $18 {[%emt 0:00:40]} axb3 {[%emt 0:00:01]} 37. Ne3 {[%emt 0:00:24] Repels Rc2} (37. gxh5 $6 Rc2 38. Rdd2 Rc1 $14) 37... Nxe3 {[%emt 0:00:08]} 38. fxe3 {[%emt 0:02:43]} (38. Rxe3 Rb8 39. Rd2 (39. Rxe4 Rc2 $16) 39... Rc2) 38... hxg4 {[%emt 0:00:59]} 39. hxg4 {[%emt 0:00:31][%mdl 4096] Endgame KRR-KRR. White is a pawn up.} Rec8 {[%emt 0:01:29]} 40. Rh2 {[%emt 0:02:21]} Ke7 {[%emt 0:01:34]} 41. Ra1 {[%emt 0:32:05] Black must now prevent Rh7.} Rc2 $2 {[%emt 0:00:36]} (41... Rc1 42. Ra7+ (42. Rh1 Rxh1 43. Rxh1 Rc2 $14) 42... R8c7) 42. Ra7+ $1 {[%emt 0:00:00]} Kf6 {[%emt 0:03:26]} (42... R2c7 43. Ra3 f6) 43. Ra6+ {[%emt 0:00:00]} (43. Rh7 $142) 43... Ke7 $2 {[%emt 0:00:08]} (43... R8c6 {was called for.} 44. Rxc2 Rxa6) 44. Rh7 $1 {[%emt 0:00:00]} Rxb2 {[%emt 0:00:02]} 45. Rxg7 {[%emt 0:00:00] White wants to mate with f6+.} Rb1 {[%emt 0:00:36] [#]} (45... Rf8 $18 46. Rb6 Kd7) 46. f6+ $1 {[%emt 0:00:00]} ({And not} 46. Ra7+ Kd6 47. Rgxf7 (47. Raxf7 Rg1+ 48. Kf4 b2 $11) 47... b2 48. Ra6+ (48. Rfd7+ Kc6 $15) 48... Kd5 49. Ra5+ (49. Rd7+ $2 Kc4 $19) 49... Kc4 $19) 46... Kf8 {[%emt 0:00:04] [#]} 47. Ra7 $1 {[%emt 0:00:00]} b2 {[%emt 0:00:45]} 48. Raxf7+ {[%emt 0:00:00]} Ke8 {[%emt 0:00:06]} 49. Rb7 {[%emt 0:00:00][%cal Rg7g8]} Kf8 {[%emt 0:00:52]} 50. Rh7 {[%emt 0:00:00][%cal Rh7h8]} Rg1+ {[%emt 0:00:25]} 51. Kf4 {[%emt 0:00:00][%cal Rh7h8]} b1=N {[%emt 0:00:12]} 52. Rh8# {[%emt 0:00:00]} 1-0

[Event "German Bundesliga 2024-25"]
[Site "Germany"]
[Date "2025.01.12"]
[Round "6.11"]
[White "Christiansen, Johan-Sebastian"]
[Black "Sindarov, Javokhir"]
[Result "0-1"]
[Annotator "TA"]
[ECO "B30"]
[WhiteElo "2661"]
[BlackElo "2682"]
[PlyCount "134"]
[EventDate "2024.09.27"]
[EventType "team-tourn"]
[EventCountry "GER"]
[SourceTitle "playchess.com"]
[Source "ChessBase"]
[SourceQuality "1"]
[WhiteTeam "St. Pauli"]
[BlackTeam "Duesseldorf"]
[TimeControl "40/5400+30:1800+30"]

{[%evp 43,134,-84,-101,-185,-35,-38,-33,-32,-35,-36,-22,-31,-19,-20,-13,-13,-12,-12,-12,-15,-17,-15,-22,-16,-10,-16,-12,-8,-8,-17,-16,-14,-10,-224,-223,-224,-224,-224,-224,-224,-92,-224,-224,-224,-235,-985,-715,-1087,-682,-1528,-1453,-1512,-1407,-1293,-1145,-1062,-1025,-1718,0,-47,0,-1062,-909,-1035,-1147,-1019,-791,-1464,-1344,-1695,-659,-1768,-1670,-29970,-29968,-29970,-29972,-29975,-29968,-29976,-29976,-29976,-29978,-29978,-29979,-29979,-29980,-29980,-29981,-29981,-29982,-29982,-29983]} 1. e4 {[%emt 0:00:04]} c5 {[%emt 0:00:29]} 2. Nf3 {[%emt 0:00:06]} e6 {[%emt 0:00:06]} 3. Nc3 {[%emt 0:02:17]} Nc6 {[%emt 0:00:08]} 4. Bb5 {[%emt 0:02:01]} Nd4 {[%emt 0:00:23]} 5. O-O {[%emt 0:01:22]} a6 {[%emt 0:01:20]} 6. Bd3 {[%emt 0:00:26]} Nc6 {[%emt 0:00:11]} 7. Nd5 {[%emt 0:02:04]} g6 {[%emt 0:05:27]} 8. c3 {[%emt 0:00:48]} Bg7 {[%emt 0:03:37]} 9. Re1 {[%emt 0:00:06]} d6 {[%emt 0:01:29]} 10. Ne3 {[%emt 0:00:07]} Nge7 {[%emt 0:00:05]} 11. Bb1 {[%emt 0:00:07]} d5 {[%emt 0:02:37]} 12. d4 {[%emt 0:03:21]} cxd4 {[%emt 0:02:02]} 13. cxd4 {[%emt 0:00:03]} dxe4 {[%emt 0:00:29]} 14. Bxe4 {[%emt 0:00:02]} O-O {[%emt 0:01:36]} 15. Nc4 {[%emt 0:00:02]} Nxd4 {[%emt 0:08:54]} 16. Be3 {[%emt 0:00:39]} e5 {[%emt 0:19:48]} 17. Nfxe5 {[%emt 0:11:07]} Nef5 {[%emt 0:00:09]} 18. Bd2 {[%emt 0:29:06]} Rb8 {[%emt 0:09:25]} 19. Bc3 {[%emt 0:16:14]} Be6 {[%emt 0:01:30]} 20. Bxf5 {[%emt 0:26:32]} Nxf5 {[%emt 0:00:07]} 21. Qxd8 {[%emt 0:01:12]} Rfxd8 {[%emt 0:00:33]} 22. Nb6 {[%emt 0:00:48]} Nd4 {[%emt 0:01:39]} 23. Nbd7 {[%emt 0:01:01]} (23. Re4 $17 {was worth a try.} Nb5 24. Ba5) 23... Bxd7 {[%emt 0:00:32]} (23... Rxd7 24. Nxd7 Bxd7 25. Bxd4 $16) (23... Bxe5 $1 $19 24. Nxb8 (24. Nxe5 $2 Nc2 $19) 24... Bxb8) 24. Bxd4 $15 {[%emt 0:00:04]} Be6 {[%emt 0:00:14]} 25. Bc3 {[%emt 0:00:10]} Rbc8 {[%emt 0:01:03]} 26. a3 {[%emt 0:00:39]} Rc5 {[%emt 0:03:04]} 27. f4 {[%emt 0:01:07]} Rcd5 {[%emt 0:00:51]} 28. h3 {[%emt 0:00:43]} Bh6 {[%emt 0:12:46]} 29. Re4 {[%emt 0:00:06]} Bf5 {[%emt 0:06:22]} 30. Rb4 {[%emt 0:00:10]} b5 {[%emt 0:00:34]} 31. Ng4 {[%emt 0:00:50]} Bxg4 {[%emt 0:07:33]} 32. hxg4 {[%emt 0:00:02]} Re8 {[%emt 0:03:39]} 33. Re1 {[%emt 0:00:53]} Rxe1+ {[%emt 0:00:04]} 34. Bxe1 {[%emt 0:00:01]} f5 {[%emt 0:00:04]} 35. gxf5 {[%emt 0:00:29]} gxf5 {[%emt 0:00:01]} 36. Kf1 {[%emt 0:02:05]} Bg7 {[%emt 0:00:38]} 37. Ke2 {[%emt 0:00:55]} Kf7 {[%emt 0:00:20]} 38. Bc3 $2 {[%emt 0:00:58]} (38. a4 $11 {and White is okay.}) 38... a5 $1 $19 {[%emt 0:00:29]} 39. Rb3 {[%emt 0:00:01]} a4 $1 {[%emt 0:00:26]} 40. Rb4 {[%emt 0:00:05]} Bf8 {[%emt 0:00:11]} 41. Rd4 {[%emt 0:30:05]} Ke6 {[%emt 0:31:05]} (41... Rxd4 $19 42. Bxd4 Ke6) 42. Kd3 {[%emt 0:00:00]} (42. Rd3 $17) 42... Bd6 $1 $19 {[%emt 0:00:00]} 43. Rxd5 {[%emt 0:00:00]} Kxd5 {[%emt 0:00:00]} 44. Bd2 $2 {[%emt 0:00:00]} (44. Ke3) 44... h5 $19 {[%emt 0:00:00]} 45. Be3 {[%emt 0:00:00]} b4 {[%emt 0:00:00]} 46. axb4 {[%emt 0:00:00]} Bxb4 {[%emt 0:00:00]} 47. Bd4 {[%emt 0:00:00]} Bd6 {[%emt 0:00:00]} 48. Be3 {[%emt 0:00:50]} Bc5 $1 {[%emt 0:00:00]} 49. Bd2 {[%emt 0:03:14]} Bd4 {[%emt 0:00:00]} 50. Bc3 {[%emt 0:00:33]} Bc5 $2 {[%emt 0:00:00]} ({Better is} 50... Bxc3 $1 $19 51. Kxc3 Ke4) 51. Be5 {[%emt 0:01:00]} (51. Bd2 $11) 51... Bb4 {[%emt 0:00:00]} (51... Be7 $15) 52. Bc7 $2 {[%emt 0:00:38][%mdl 8192]} (52. Bd4 $11) 52... Bf8 $1 $19 {[%emt 0:00:00]} 53. Be5 {[%emt 0:00:02]} Bh6 $1 {[%emt 0:00:00]} 54. Ke3 {[%emt 0:01:42]} Kc4 $1 {[%emt 0:00:00]} 55. Kf3 {[%emt 0:00:22]} Bf8 {[%emt 0:00:00]} 56. Kg3 {[%emt 0:00:34] [#]} Be7 $1 {[%emt 0:00:00]} 57. Kh3 {[%emt 0:00:35]} Kd3 {[%emt 0:00:00]} 58. g3 {[%emt 0:00:13]} Ke2 {[%emt 0:00:00]} 59. Bd4 {[%emt 0:00:25]} Kf3 {[%emt 0:00:00]} 60. Be5 {[%emt 0:00:05]} Bd8 {[%emt 0:00:00]} 61. Bg7 {[%emt 0:00:22]} Bb6 {[%emt 0:00:00]} 62. Kh4 {[%emt 0:00:25] [#]} Bf2 $1 {[%emt 0:00:00]} 63. Kxh5 {[%emt 0:00:31]} Bxg3 {[%emt 0:00:00]} 64. Kg5 {[%emt 0:00:09]} Ke4 {[%emt 0:00:00]} 65. Be5 {[%emt 0:00:04]} Bf2 {[%emt 0:00:00]} 66. Kf6 {[%emt 0:00:50]} Be3 {[%emt 0:00:00]} 67. Kg5 {[%emt 0:00:38]} Bc1 {[%emt 0:00:00]} 0-1

[Event "German Bundesliga 2024-25"]
[Site "Germany"]
[Date "2025.01.12"]
[Round "6.11"]
[White "Vogel, Roven"]
[Black "Santos Latasa, Jaime"]
[Result "1-0"]
[Annotator "TA"]
[ECO "A13"]
[WhiteElo "2558"]
[BlackElo "2630"]
[PlyCount "61"]
[EventDate "2024.09.27"]
[EventType "team-tourn"]
[EventCountry "GER"]
[SourceTitle "playchess.com"]
[Source "ChessBase"]
[SourceQuality "1"]
[WhiteTeam "TU Dresden"]
[BlackTeam "Bayern Muenchen"]
[TimeControl "40/5400+30:1800+30"]

{[%evp 11,61,0,24,20,20,-8,4,0,12,0,10,3,2,0,4,6,26,18,36,38,41,33,62,63,93,89,120,111,128,129,143,153,172,176,175,125,115,97,88,90,142,145,261,271,280,267,370,374,605,614,596,607]} 1. Nf3 {[%emt 0:00:06]} e6 {[%emt 0:02:56]} 2. c4 {[%emt 0:00:35]} d5 {[%emt 0:00:05]} 3. e3 {[%emt 0:00:10]} Nf6 {[%emt 0:00:21]} 4. Nc3 {[%emt 0:00:43]} Be7 {[%emt 0:02:52]} 5. b3 {[%emt 0:00:57]} O-O {[%emt 0:00:15]} 6. Bb2 {[%emt 0:00:09]} b6 {[%emt 0:02:21]} 7. cxd5 {[%emt 0:08:03]} exd5 {[%emt 0:00:39]} 8. Be2 {[%emt 0:00:33]} Bb7 {[%emt 0:03:38]} 9. O-O {[%emt 0:00:25]} Nbd7 {[%emt 0:00:45]} 10. Rc1 {[%emt 0:00:36]} a6 {[%emt 0:00:20]} 11. Re1 {[%emt 0:01:42]} Re8 {[%emt 0:02:00]} 12. Bf1 {[%emt 0:00:20]} Ne4 {[%emt 0:06:11]} 13. Ne2 {[%emt 0:07:06]} c5 {[%emt 0:04:56]} 14. d3 {[%emt 0:02:02]} Nd6 {[%emt 0:00:14]} 15. Nf4 {[%emt 0:02:14]} Rc8 {[%emt 0:02:43]} 16. g3 {[%emt 0:01:59]} Rc7 {[%emt 0:06:48]} 17. Bg2 {[%emt 0:03:33]} Nf6 {[%emt 0:12:40]} 18. Nd2 {[%emt 0:04:53]} Nb5 {[%emt 0:04:44] [#]} 19. a4 $1 {[%emt 0:02:34]} Na7 {[%emt 0:00:42]} 20. d4 {[%emt 0:06:12] White is much more active.} Nc8 {[%emt 0:05:57]} 21. dxc5 {[%emt 0:03:00]} bxc5 {[%emt 0:00:05]} 22. Be5 {[%emt 0:00:38]} Rc6 {[%emt 0:02:28][%cal Bc7c6,Bc6f6,Bf6h6][%mdl 32]} 23. Bxf6 {[%emt 0:10:44]} (23. e4 $18 {[%cal Re4d5]} Nxe4 24. Nxe4 dxe4 25. Bxe4) 23... Rxf6 $16 {[%emt 0:00:14]} 24. Nb1 {[%emt 0:00:30][%cal Oe1e2]} Nb6 {[%emt 0:06:28]} 25. a5 {[%emt 0:13:41]} Nc8 {[%emt 0:01:44]} (25... g5 $2 26. Nh5 Nd7 27. Nxf6+ Nxf6 28. Qd2 $18) (25... Nd7 $142) 26. Nc3 {[%emt 0:03:23][%cal Rc3d5]} (26. Bxd5 $6 Rd6 27. e4 (27. Rxc5 Bf8 $16) 27... Bg5 $14) 26... Qxa5 {[%emt 0:01:06]} (26... Bf8 $16 {was worth a try.} 27. Ncxd5 (27. Bxd5 Rd6 $16) 27... Rd6 28. Rxc5 Rd7) 27. Ncxd5 $18 {[%emt 0:01:58]} ({Don't do} 27. Bxd5 $6 Bxd5 28. Ncxd5 Rc6 $18) 27... Bxd5 {[%emt 0:03:14]} 28. Nxd5 {[%emt 0:00:18][%cal Ob3b4] and b4! should not be overlooked} ({Less strong is} 28. Bxd5 Nb6 $16) 28... Rh6 {[%emt 0:01:13]} 29. b4 {[%emt 0:01:38]} Qa3 $2 {[%emt 0:00:26]} (29... Qd8 30. bxc5 (30. Nxe7+ Qxe7 31. bxc5 Rf6 $18) 30... Bf8) 30. Rc3 {[%emt 0:00:48]} Qb2 {[%emt 0:00:46]} 31. Re2 {[%emt 0:00:07]} 1-0

[Event "German Bundesliga 2024-25"]
[Site "Germany"]
[Date "2025.01.12"]
[Round "6.12"]
[White "Van Foreest, Jorden"]
[Black "Bjerre, Jonas Buhl"]
[Result "1-0"]
[Annotator "TA"]
[ECO "C84"]
[WhiteElo "2687"]
[BlackElo "2654"]
[PlyCount "91"]
[EventDate "2024.09.27"]
[EventType "team-tourn"]
[EventCountry "GER"]
[SourceTitle "playchess.com"]
[Source "ChessBase"]
[SourceQuality "1"]
[WhiteTeam "Duesseldorf"]
[BlackTeam "St. Pauli"]
[TimeControl "40/5400+30:1800+30"]

{[%evp 51,91,123,127,124,135,139,112,122,127,140,147,138,238,238,304,276,546,529,823,804,892,876,906,914,1422,1547,1382,1347,29977,29978,29978,477,29979,29980,29980,29981,29981,29982,29982,29983,29993,29994]} 1. e4 {[%emt 0:00:12]} e5 {[%emt 0:00:12]} 2. Nf3 {[%emt 0:00:17]} Nc6 {[%emt 0:00:12]} 3. Bb5 {[%emt 0:00:45]} a6 {[%emt 0:00:17]} 4. Ba4 {[%emt 0:00:14]} Nf6 {[%emt 0:00:16]} 5. O-O {[%emt 0:00:43]} Be7 {[%emt 0:00:35]} 6. d3 {[%emt 0:01:57]} b5 {[%emt 0:00:30]} 7. Bb3 {[%emt 0:00:10]} d6 {[%emt 0:00:39]} 8. c3 {[%emt 0:00:41]} O-O {[%emt 0:00:36]} 9. Bc2 {[%emt 0:03:10]} Re8 {[%emt 0:04:02]} 10. Re1 {[%emt 0:00:18]} h6 {[%emt 0:05:14]} 11. Nbd2 {[%emt 0:02:28]} Bf8 {[%emt 0:09:53]} 12. d4 {[%emt 0:03:20]} exd4 {[%emt 0:07:22]} 13. cxd4 {[%emt 0:01:15]} Bg4 {[%emt 0:00:34]} 14. h3 {[%emt 0:05:34]} Bh5 {[%emt 0:01:09]} 15. g4 {[%emt 0:07:34]} Bg6 {[%emt 0:02:16]} 16. a3 {[%emt 0:04:26]} Qd7 {[%emt 0:09:11]} 17. Re3 {[%emt 0:11:05]} Re7 {[%emt 0:12:36]} 18. b4 {[%emt 0:06:29]} Rae8 {[%emt 0:04:40]} 19. d5 {[%emt 0:00:46]} Ne5 {[%emt 0:07:21]} 20. Nxe5 {[%emt 0:05:46]} dxe5 {[%emt 0:00:32]} 21. Rc3 {[%emt 0:01:20]} Rd8 {[%emt 0:04:06]} 22. Qf3 {[%emt 0:02:20]} h5 {[%emt 0:03:48]} 23. g5 {[%emt 0:00:44]} Ne8 {[%emt 0:00:40]} 24. Nb3 {[%emt 0:01:13]} Nd6 {[%emt 0:02:11]} 25. Rc6 {[%emt 0:00:44]} Qc8 {[%emt 0:04:23]} 26. Bd3 {[%emt 0:08:23]} Nb7 {[%emt 0:04:55]} 27. Rxa6 {[%emt 0:07:48]} Rxd5 {[%emt 0:08:28]} 28. Rxg6 $1 {[%emt 0:01:04]} (28. exd5 $6 e4 29. Bxe4 Bxe4 30. Qxh5 g6 $14 (30... Bxd5 31. g6 $14)) 28... Rxd3 {[%emt 0:00:08]} 29. Rxg7+ {[%emt 0:00:12]} (29. Qxd3 fxg6 30. Kg2 (30. Qxb5 Qxh3 31. Qxb7 Qg4+ 32. Kf1 Rd7 $11) 30... Qd7 31. Qxd7 Rxd7 $11) 29... Kxg7 {[%emt 0:01:26]} 30. Qxd3 {[%emt 0:00:07]} Qe6 {[%emt 0:00:20]} 31. Bb2 {[%emt 0:01:38]} (31. Qxb5 Qxb3 32. Qxb7 Qc3 $19) 31... Qg6 {[%emt 0:02:41]} (31... Kh7 $16 32. Kh2 (32. Qxb5 $2 Qxb3 33. Qe2 Qxh3 $19) 32... Qg6) 32. Nd4 $18 {[%emt 0:04:57]} (32. Qxb5 $6 Qxg5+ 33. Kf1 Qh4) 32... Kh7 {[%emt 0:04:36]} (32... exd4 33. Qxd4+ f6 34. Qxf6+ Qxf6 35. gxf6+ Kf7 36. fxe7 $18) (32... Qxg5+ 33. Kh1 Kh7 (33... exd4 $2 34. Qxd4+ f6 35. Rg1 $18) 34. Rg1 $18 (34. Qxb5 $2 Qh4 $19) (34. Nxb5 Qf4 $16)) 33. Nf5 $1 {[%emt 0:01:18]} (33. Nxb5 c6 $16) 33... Re8 $2 {[%emt 0:00:22]} (33... Re6 34. h4 (34. Qxb5 Qxg5+ 35. Kf1 Nd6 $16) 34... Nd6) 34. Qxb5 $18 {[%emt 0:01:32]} Qxg5+ {[%emt 0:00:27]} 35. Kh1 {[%emt 0:01:47]} Re6 {[%emt 0:00:37]} 36. Rg1 {[%emt 0:00:46]} (36. Qxb7 Rg6 37. Ng3 (37. Bxe5 $2 Qg2#) 37... Qf4 $11) 36... Qd2 {[%emt 0:00:31]} 37. Qxb7 {[%emt 0:07:40]} ({Weaker is} 37. Bxe5 Qxf2 38. Bxc7 (38. Qxb7 Qf3+ 39. Rg2 Rxe5 $17) 38... Qf3+ 39. Kh2 Nd6 $16) 37... Qxb2 {[%emt 0:00:34]} 38. Qxc7 {[%emt 0:00:18]} Rf6 {[%emt 0:00:27]} 39. Qd8 {[%emt 0:05:29]} Qxf2 {[%emt 0:00:36]} 40. Qxf6 {[%emt 0:01:52]} Qf3+ {[%emt 0:00:13]} 41. Kh2 {[%emt 0:30:19]} (41. Rg2 $142 Qf1+ 42. Kh2 Qf4+ 43. Kg1 (43. Rg3 Qf2+ 44. Rg2 Qf4+ 45. Kg1 Qc1+ 46. Kf2 Qf4+ 47. Ke2 Qxe4+ 48. Ne3 Qf4 $18) 43... Qc1+ 44. Kf2 Qd2+ 45. Kf3 Qf4+ 46. Ke2 Qxe4+ 47. Ne3) 41... Qf2+ {[%emt 0:02:11]} (41... Qf4+ $18 42. Rg3 Qf2+ 43. Rg2 Qf4+ 44. Kg1 (44. Rg3 Qf2+ 45. Rg2 Qf4+ 46. Kg1 Qc1+ 47. Kf2 Qd2+ 48. Kf3 Qf4+ 49. Ke2 Qxe4+ 50. Ne3 Qf4 $18) 44... Qc1+ 45. Kf2 Qf4+ 46. Ke2 (46. Kg1 Qc1+ 47. Kf2 Qd2+ 48. Kf3 Qf4+ 49. Ke2 Qxe4+ 50. Ne3 Qf4 $18) 46... Qxe4+ 47. Ne3 Qf4 48. Qxf4 exf4) 42. Rg2 {[%emt 0:00:00]} Qf4+ {[%emt 0:00:08]} 43. Kg1 $1 {[%emt 0:00:00]} Qc1+ {[%emt 0:02:22] [#]} 44. Kf2 $1 {[%emt 0:00:00]} Qd2+ {[%emt 0:02:01] [#]} 45. Kf3 $1 {[%emt 0:00:00]} Qd1+ {[%emt 0:01:37]} 46. Kg3 {[%emt 0:00:00]} 1-0